[Event "SixDays Budapest IM-A 09-2024"]
[Site "Budapest"]
[Date "2024.09.28"]
[Round "8.3"]
[White "Wadifa, Ahmed"]
[Black "Kwon, Sehyun"]
[Result "1-0"]
[ECO "B12"]
[WhiteElo "1988"]
[BlackElo "2248"]
[Annotator "ChessBase"]
[PlyCount "89"]
[EventDate "2024.09.24"]
[EventType "tourn"]
[EventCountry "HUN"]
[SourceTitle "playchess.com"]
[Source "ChessBase"]
[SourceQuality "1"]
[TimeControl "5400+30"]

1. e4 {[%emt 0:06:21]} c6 {[%emt 0:00:36]} 2. d4 {[%emt 0:00:08]} d5 {[%emt 0:00:04]} 3. e5 {[%emt 0:00:05]} c5 {[%emt 0:00:12]} 4. c3 {[%emt 0:00:06]} Nc6 {[%emt 0:01:00]} 5. Be2 {[%emt 0:00:07]} cxd4 {[%emt 0:02:44]} 6. cxd4 {[%emt 0:00:06]} Bf5 {[%emt 0:01:13]} 7. Nf3 {[%emt 0:02:11]} e6 {[%emt 0:02:23]} 8. O-O {[%emt 0:01:06]} Bg4 {[%emt 0:02:33]} 9. Nbd2 {[%emt 0:03:34]} Nge7 {[%emt 0:06:37]} 10. Nb3 {[%emt 0:03:19]} Nf5 {[%emt 0:10:45]} 11. Be3 {[%emt 0:04:54]} Be7 {[%emt 0:06:14]} 12. Rc1 {[%emt 0:03:49]} Qb6 {[%emt 0:03:39]} 13. h3 {[%emt 0:03:15]} Bxf3 {[%emt 0:03:21]} 14. Bxf3 {[%emt 0:00:24]} a5 {[%emt 0:02:51]} 15. a4 {[%emt 0:13:58]} O-O {[%emt 0:05:57]} 16. Bg4 {[%emt 0:05:54]} Nxe3 {[%emt 0:05:58]} 17. fxe3 {[%emt 0:00:10]} Qb4 {[%emt 0:00:49]} 18. Nc5 {[%emt 0:04:27]} Nxe5 {[%emt 0:07:41]} 19. Nxe6 {[%emt 0:07:09]} Nxg4 {[%emt 0:06:18]} 20. Nxf8 {[%emt 0:00:07]} Nf6 {[%emt 0:03:38]} 21. Rxf6 {[%emt 0:05:09]} Bxf6 {[%emt 0:00:13]} 22. Nd7 {[%emt 0:00:04]} Bg5 {[%emt 0:00:59]} 23. Qd3 {[%emt 0:07:25]} Qe7 {[%emt 0:02:52]} 24. Ne5 {[%emt 0:02:54]} f6 {[%emt 0:00:56]} 25. h4 {[%emt 0:00:15]} Bxh4 {[%emt 0:03:40]} 26. Nf3 {[%emt 0:00:12]} Bg5 {[%emt 0:00:47]} 27. Nxg5 {[%emt 0:00:07]} fxg5 {[%emt 0:00:03]} 28. Qb3 {[%emt 0:00:44]} Qf7 {[%emt 0:06:57]} 29. Rf1 {[%emt 0:01:02]} Qe6 {[%emt 0:06:01]} 30. Qxb7 {[%emt 0:00:22]} Re8 {[%emt 0:00:06]} 31. Re1 {[%emt 0:04:57]} g4 {[%emt 0:02:08]} 32. Qc7 {[%emt 0:03:05]} Qe4 {[%emt 0:00:29]} 33. Re2 {[%emt 0:04:51]} h5 {[%emt 0:01:49]} 34. Rf2 {[%emt 0:02:14]} Qg6 {[%emt 0:03:02]} 35. Qxa5 {[%emt 0:02:19]} Qb1+ {[%emt 0:01:10]} 36. Kh2 {[%emt 0:01:02]} Qe4 {[%emt 0:00:26]} 37. Qc7 {[%emt 0:01:26]} Qg6 {[%emt 0:01:15]} 38. Qg3 {[%emt 0:02:25]} Qd3 {[%emt 0:01:01]} 39. Qd6 {[%emt 0:01:19]} Qe4 {[%emt 0:00:58]} 40. Rf4 {[%emt 0:01:02]} Qxe3 {[%emt 0:00:20]} 41. Qxd5+ {[%emt 0:00:08]} Re6 {[%emt 0:00:05]} 42. Rf5 {[%emt 0:02:38]} g6 {[%emt 0:00:21]} 43. Rf6 {[%emt 0:01:34]} g3+ {[%emt 0:01:08]} 44. Kh3 {[%emt 0:00:07]} Qc1 {[%emt 0:00:38]} 45. Qxe6+ {[%emt 0:00:08]} 1-0

[Event "SixDays Budapest IM-A 09-2024"]
[Site "Budapest"]
[Date "2024.09.28"]
[Round "8.4"]
[White "Kao, Jamison Edrich"]
[Black "Ramsdal, Jens Albert"]
[Result "0-1"]
[ECO "B06"]
[WhiteElo "2125"]
[BlackElo "2328"]
[Annotator "ChessBase"]
[PlyCount "112"]
[EventDate "2024.09.24"]
[EventType "tourn"]
[EventCountry "HUN"]
[SourceTitle "playchess.com"]
[Source "ChessBase"]
[SourceQuality "1"]
[TimeControl "5400+30"]

1. e4 {[%emt 0:00:30]} g6 {[%emt 0:01:19]} 2. d4 {[%emt 0:00:00]} Bg7 {[%emt 0:00:04]} 3. Nc3 {[%emt 0:00:00]} d5 {[%emt 0:00:09]} 4. e5 {[%emt 0:07:49]} f6 {[%emt 0:00:12]} 5. Nf3 {[%emt 0:02:18]} Bg4 {[%emt 0:00:24]} 6. Bf4 {[%emt 0:00:40]} Nc6 {[%emt 0:01:04]} 7. Bb5 {[%emt 0:01:46]} Nh6 {[%emt 0:00:37]} 8. exf6 {[%emt 0:03:35]} exf6 {[%emt 0:00:02]} 9. Qe2+ {[%emt 0:00:31]} Kf7 {[%emt 0:00:56]} 10. Bxc6 {[%emt 0:00:18]} bxc6 {[%emt 0:00:14]} 11. O-O-O {[%emt 0:00:13]} Rb8 {[%emt 0:05:50]} 12. Rhe1 {[%emt 0:05:44]} Re8 {[%emt 0:02:29]} 13. Qxe8+ {[%emt 0:07:20]} Qxe8 {[%emt 0:00:03]} 14. Rxe8 {[%emt 0:00:04]} Rxe8 {[%emt 0:00:08]} 15. Bxc7 {[%emt 0:00:10]} Nf5 {[%emt 0:00:54]} 16. Bg3 {[%emt 0:01:01]} h5 {[%emt 0:01:34]} 17. h3 {[%emt 0:02:14]} Bh6+ {[%emt 0:00:09]} 18. Kb1 {[%emt 0:00:12]} Bxf3 {[%emt 0:13:03]} 19. gxf3 {[%emt 0:00:04]} Bg5 {[%emt 0:00:21]} 20. b4 {[%emt 0:07:37]} Bh4 {[%emt 0:07:01]} 21. Bxh4 {[%emt 0:15:57]} Nxh4 {[%emt 0:00:06]} 22. b5 {[%emt 0:01:42]} cxb5 {[%emt 0:00:02]} 23. Nxd5 {[%emt 0:00:05]} Rd8 {[%emt 0:02:06]} 24. Nf4 {[%emt 0:03:00]} Nxf3 {[%emt 0:00:04]} 25. c3 {[%emt 0:01:15]} Ng5 {[%emt 0:03:52]} 26. Re1 {[%emt 0:08:34]} b4 {[%emt 0:00:36]} 27. d5 {[%emt 0:01:46]} bxc3 {[%emt 0:00:48]} 28. Re3 {[%emt 0:01:22]} Rb8+ {[%emt 0:03:33]} 29. Kc2 {[%emt 0:11:10]} Rb2+ {[%emt 0:01:32]} 30. Kxc3 {[%emt 0:00:33]} Rxf2 {[%emt 0:00:02]} 31. Nd3 {[%emt 0:07:29]} Rf3 {[%emt 0:00:34]} 32. Re1 {[%emt 0:00:02]} Nxh3 {[%emt 0:05:18]} 33. Kc4 {[%emt 0:01:14]} Nf2 {[%emt 0:00:18]} 34. Nc5 {[%emt 0:00:34]} Ng4 {[%emt 0:00:35]} 35. d6 {[%emt 0:06:07]} Ne5+ {[%emt 0:00:03]} 36. Kd5 {[%emt 0:00:11]} Rf5 {[%emt 0:00:02]} 37. Ne6 {[%emt 0:02:10]} h4 {[%emt 0:05:47]} 38. Nd8+ {[%emt 0:00:06]} Ke8 {[%emt 0:00:07]} 39. Nb7 {[%emt 0:00:18]} Kf7 {[%emt 0:01:26]} 40. Nd8+ {[%emt 0:00:04]} Kg7 {[%emt 0:04:05]} 41. Ke6 {[%emt 0:00:28]} Nd3 {[%emt 0:00:35]} 42. Nc6 {[%emt 0:01:04]} Rc5 {[%emt 0:03:33]} 43. Rd1 {[%emt 0:02:26]} Nf4+ {[%emt 0:01:01]} 44. Kd7 {[%emt 0:00:11]} h3 {[%emt 0:00:54]} 45. Nd8 {[%emt 0:00:22]} Rd5 {[%emt 0:01:36]} 46. Ne6+ {[%emt 0:00:59]} Kf7 {[%emt 0:00:01]} 47. Nd8+ {[%emt 0:00:12]} Kg8 {[%emt 0:01:41]} 48. Rf1 {[%emt 0:01:25]} g5 {[%emt 0:04:20]} 49. Ke7 {[%emt 0:00:02]} Kg7 {[%emt 0:01:45]} 50. Nc6 {[%emt 0:00:04]} Ng6+ {[%emt 0:01:28]} 51. Ke6 {[%emt 0:00:51]} Rc5 {[%emt 0:00:02]} 52. Nd4 {[%emt 0:00:53]} Nf8+ {[%emt 0:02:00]} 53. Ke7 {[%emt 0:00:36]} Re5+ {[%emt 0:00:02]} 54. Kd8 {[%emt 0:00:02]} Rd5 {[%emt 0:00:21]} 55. Nf5+ {[%emt 0:00:16]} Rxf5 {[%emt 0:00:19]} 56. Rxf5 {[%emt 0:00:04]} h2 {[%emt 0:00:14]} 0-1

[Event "SixDays Budapest IM-A 09-2024"]
[Site "Budapest"]
[Date "2024.09.28"]
[Round "8.5"]
[White "Krishna C R G"]
[Black "Boyer, Mahel"]
[Result "0-1"]
[ECO "A40"]
[WhiteElo "2425"]
[BlackElo "2489"]
[Annotator "TA"]
[PlyCount "76"]
[EventDate "2024.09.24"]
[EventType "tourn"]
[EventCountry "HUN"]
[SourceTitle "playchess.com"]
[Source "ChessBase"]
[SourceQuality "1"]
[TimeControl "5400+30"]

{[%evp 9,75,12,20,-3,0,0,0,0,2,-14,-25,-17,-41,-45,-9,-14,-20,-14,-12,5,56,70,76,-32,-41,-24,29,39,69,-25,16,-23,18,24,25,20,22,0,87,25,33,49,84,-25,-18,-230,-106,-275,-257,-266,-250,-862,-822,-1415,-1164,-2879,-2588,-3144,-2410,-2700,-2343,-29984,-29985,-29987,-29988,-29997,-29998,-29999]} 1. d4 g6 {[%emt 0:04:42]} 2. g3 {[%emt 0:02:24]} Bg7 {[%emt 0:00:34]} 3. Bg2 {[%emt 0:00:02]} c5 {[%emt 0:01:28]} 4. d5 {[%emt 0:02:15]} d6 {[%emt 0:00:10]} 5. e4 {[%emt 0:00:31]} b5 {[%emt 0:07:27]} 6. Ne2 {[%emt 0:13:59]} Nd7 {[%emt 0:00:16]} 7. a4 {[%emt 0:03:17]} b4 {[%emt 0:00:22]} 8. O-O {[%emt 0:00:03] The position is equal.} Ba6 {[%emt 0:05:53]} 9. h3 {[%emt 0:06:01]} Ngf6 {[%emt 0:00:58]} 10. Be3 {[%emt 0:00:04]} O-O {[%emt 0:00:52]} 11. Nd2 {[%emt 0:00:03]} Re8 {[%emt 0:11:54][%cal Bf8e8,Be8e6,Be6e5][%mdl 32]} 12. Re1 {[%emt 0:19:24]} e6 {[%emt 0:01:44]} 13. dxe6 {[%emt 0:00:24]} Rxe6 {[%emt 0:00:34]} 14. g4 {[%emt 0:03:47][%cal Bg3g4,Bg4g5][%mdl 32]} h5 {[%emt 0:05:25]} (14... Bb7 $11) 15. Nf4 $14 {[%emt 0:03:36][%csl LRe6,LRh5]} Re5 {[%emt 0:00:03] [#]} 16. Nd3 {[%emt 0:34:45]} ({White should play} 16. gxh5 $1 $16 Nxh5 17. Nf3 Nxf4 18. Bxf4) 16... Re8 $15 {[%emt 0:10:02]} 17. f4 {[%emt 0:00:21]} Qc7 {[%emt 0:11:19]} (17... hxg4 $142 18. hxg4 Rb8) 18. g5 $11 {[%emt 0:04:14]} Nh7 {[%emt 0:00:06]} 19. Rb1 {[%emt 0:00:03]} (19. f5 $1 $14) 19... Bb7 {[%emt 0:01:34]} (19... Rad8 $5) 20. Bf2 {[%emt 0:01:45]} Nhf8 {[%emt 0:01:22]} 21. f5 {[%emt 0:01:04]} Bd4 {[%emt 0:04:31]} (21... gxf5 {feels hotter.} 22. Qxh5 c4 23. Nf4 fxe4 24. Bxe4 Rxe4 25. Rxe4 Bxe4 26. Nxe4 d5) 22. Bxd4 {[%emt 0:00:41]} cxd4 {[%emt 0:00:01]} 23. Nxb4 {[%emt 0:00:19]} Nc5 {[%emt 0:00:01]} (23... gxf5 $11 {remains equal.} 24. Rf1 (24. exf5 $2 Bxg2 25. Qxh5 Bb7 $19) (24. Qxh5 $2 Qc5 $19) 24... fxe4 (24... Bxe4 $2 25. Nxe4 fxe4 26. Qxh5 $18) 25. Qxh5 Nc5 (25... Ng6 $2 26. Rxf7 Kxf7 27. Qh7+ Ke6 28. Qxg6+ Ke7 29. Nxe4 $18)) 24. Nd5 {[%emt 0:02:43]} (24. Rf1 $16) 24... Bxd5 {[%emt 0:01:11]} 25. exd5 {[%emt 0:00:01]} d3 {[%emt 0:01:29] Strongly threatening ...Rxe1+.} 26. c4 {[%emt 0:01:13]} (26. Rf1 $16) 26... gxf5 {[%emt 0:00:47]} 27. Qxh5 $2 {[%emt 0:00:29]} (27. b4 $11 Rxe1+ 28. Qxe1 Nxa4 29. Qe3) 27... Ng6 {[%emt 0:00:24]} (27... Rxe1+ $19 {and Black stays clearly on top.} 28. Rxe1 Rb8) 28. b3 $2 {[%emt 0:00:24]} ({Avoid the trap} 28. b4 $2 Nxa4 29. Qf3 Nc3 $19) (28. Qf3 $17 {keeps fighting.}) 28... Rxe1+ $19 {[%emt 0:01:05]} 29. Rxe1 {[%emt 0:00:01]} Qa5 {[%emt 0:00:03]} 30. Nf3 {[%emt 0:00:59]} (30. Qd1) 30... Ne4 {[%emt 0:01:37]} 31. Rd1 {[%emt 0:00:26]} Qc3 {[%emt 0:00:24]} 32. Nh4 {[%emt 0:00:40]} Qd4+ {[%emt 0:03:49]} ({And not} 32... Qxb3 33. Nxg6 (33. Nxf5 $2 {is the wrong capture.} Ng3 $17) 33... fxg6 34. Qxg6+ Kh8 35. Qh6+ Kg8 36. Rf1 $11) 33. Kh2 {[%emt 0:00:02]} Qe5+ {[%emt 0:00:07]} 34. Kg1 {[%emt 0:00:02]} Nf4 {[%emt 0:01:39]} 35. Qf3 {[%emt 0:00:16]} Ne2+ {[%emt 0:00:02] Excellent horsemanship. Black mates.} 36. Kf1 {[%emt 0:00:15] [#]} Nd2+ $1 {[%emt 0:00:22][%mdl 512]} 37. Rxd2 {[%emt 0:00:45]} (37. Ke1 Nxf3+) 37... Qa1+ {[%emt 0:00:04]} 38. Kf2 {[%emt 0:00:04]} Qg1# {Weighted Error Value: White=1.11/Black=0.31.  Loses game:     	White=2     	---        Mistake:       	White=5     	Black=4      Inaccurate:     	White=2     	Black=4      OK:         	White=4     	Black=8      Best:        	White=2     	Black=1} 0-1

[Event "SixDays Budapest IM-A 09-2024"]
[Site "Budapest"]
[Date "2024.09.29"]
[Round "9.1"]
[White "Boyer, Mahel"]
[Black "Bashylina, Luisa"]
[Result "1-0"]
[ECO "B20"]
[WhiteElo "2489"]
[BlackElo "2124"]
[Annotator "TA"]
[PlyCount "79"]
[EventDate "2024.09.24"]
[EventType "tourn"]
[EventCountry "HUN"]
[SourceTitle "playchess.com"]
[Source "ChessBase"]
[SourceQuality "1"]
[TimeControl "5400+30"]

{[%evp 18,79,16,24,24,11,39,39,57,50,50,39,43,49,43,41,37,38,38,39,69,56,60,55,58,60,62,45,56,47,38,26,37,54,50,29,61,14,20,8,0,0,19,31,23,23,7,20,23,27,56,57,49,39,52,47,242,200,1302,1344,29990,29991,29993,29994]} 1. e4 {[%emt 0:13:20]} c5 {[%emt 0:00:03]} 2. d3 {[%emt 0:00:11]} e6 {[%emt 0:02:15]} 3. g3 {[%emt 0:00:48]} d6 {[%emt 0:01:33]} 4. Bg2 {[%emt 0:00:12]} g6 {[%emt 0:00:14]} 5. f4 {[%emt 0:09:29]} Bg7 {[%emt 0:00:12]} 6. Nf3 {[%emt 0:00:05]} Nc6 {[%emt 0:00:18]} 7. O-O {[%emt 0:00:10]} Nge7 {[%emt 0:00:11]} 8. c3 {[%emt 0:00:06]} O-O {[%emt 0:00:27]} 9. Be3 {[%emt 0:00:04]} Rb8 {[%emt 0:02:11]} 10. d4 {[%emt 0:01:58]} d5 {[%emt 0:04:41]} 11. e5 {[%emt 0:00:26]} cxd4 {[%emt 0:08:42]} 12. cxd4 {[%emt 0:00:06]} f6 {[%emt 0:03:38] White is slightly better.} 13. exf6 {[%emt 0:03:11]} Bxf6 {[%emt 0:00:32]} 14. Nc3 {[%emt 0:00:13]} Nf5 {[%emt 0:09:56]} 15. Bf2 {[%emt 0:03:04]} Bd7 {[%emt 0:00:21]} 16. Re1 {[%emt 0:01:20]} Rc8 {[%emt 0:00:38]} 17. Rc1 {[%emt 0:01:26]} Kh8 {[%emt 0:10:53]} 18. Rc2 {[%emt 0:01:57]} a6 {[%emt 0:05:22]} 19. Kh1 {[%emt 0:08:22]} b5 {[%emt 0:02:47]} 20. Ne2 {[%emt 0:01:30]} Nb4 {[%emt 0:06:26]} 21. Rxc8 {[%emt 0:01:04]} Qxc8 {[%emt 0:00:46]} 22. Qd2 {[%emt 0:11:08]} (22. Nc1 {with more complications.} Qc2 23. a3 Rc8 24. g4) 22... a5 {[%emt 0:05:49][%cal Of5d6]} 23. Nc3 {[%emt 0:09:32]} Nd6 {[%emt 0:04:40]} 24. b3 {[%emt 0:03:53] Repels Nc4} Na6 {[%emt 0:02:35]} 25. Ne5 {[%emt 0:03:10]} b4 {[%emt 0:00:50]} 26. Ne2 {[%emt 0:00:37]} Bb5 {[%emt 0:01:39]} 27. Rc1 {[%emt 0:01:34]} (27. a4 $14 bxa3 28. Qxa5) 27... Qb7 {[%emt 0:00:43]} 28. Be3 {[%emt 0:01:06]} Rc8 {[%emt 0:04:21]} 29. Ng1 {[%emt 0:00:12][%cal Be2g1,Bg1f3,Bf3g5,Bg5e6][%mdl 32]} a4 {[%emt 0:00:49]} 30. bxa4 {[%emt 0:00:24]} Bxa4 {[%emt 0:00:15]} 31. Ngf3 {[%emt 0:00:52]} Ne4 {[%emt 0:00:49] Prevents Ng5.} 32. Qb2 {[%emt 0:01:00]} Rxc1+ {[%emt 0:02:00]} 33. Qxc1 {[%emt 0:00:27]} Qc7 {[%emt 0:01:55]} 34. Qf1 {[%emt 0:00:19]} Qb6 {[%emt 0:02:48]} 35. Ng5 {[%emt 0:01:14]} Bb5 {[%emt 0:00:34]} ({Avoid the trap} 35... Nxg5 $2 36. fxg5 Bg7 37. Qf7 $18) 36. Qf3 {[%emt 0:01:17]} Nc3 {[%emt 0:03:25] Black cannot hold the game after this.} (36... Nc7 $14) 37. Qg4 {[%emt 0:02:18]} Bxe5 {[%emt 0:01:44]} (37... Be8) 38. fxe5 $18 {[%emt 0:00:32] [#] Threatening mate with Qf3.} Bd3 {[%emt 0:01:21]} 39. Qh4 {[%emt 0:02:58][%csl Gg5][%cal Rh4h7]} ({Not} 39. Qxe6 Qxe6 40. Nxe6 Bc4 $11) 39... Qb7 {[%emt 0:04:18]} 40. Nxe6 {[%emt 0:00:34] Weighted Error Value: White=0.07 (flawless) /Black=0.32.  Loses game:     	---       	Black=1      Mistake:       	White=1     	Black=1      Inaccurate:     	---       	Black=5      OK:         	White=12    	Black=9      Best:        	---       	Black=1} 1-0

[Event "SixDays Budapest IM-A 09-2024"]
[Site "Budapest"]
[Date "2024.09.29"]
[Round "9.2"]
[White "Ramsdal, Jens Albert"]
[Black "Krishna C R G"]
[Result "0-1"]
[ECO "C02"]
[WhiteElo "2328"]
[BlackElo "2425"]
[Annotator "ChessBase"]
[PlyCount "132"]
[EventDate "2024.09.24"]
[EventType "tourn"]
[EventCountry "HUN"]
[SourceTitle "playchess.com"]
[Source "ChessBase"]
[SourceQuality "1"]
[TimeControl "5400+30"]

1. e4 {[%emt 0:04:54]} e6 {[%emt 0:00:15]} 2. d4 {[%emt 0:00:06]} d5 {[%emt 0:00:02]} 3. e5 {[%emt 0:00:06]} c5 {[%emt 0:00:04]} 4. c3 {[%emt 0:00:05]} Qb6 {[%emt 0:00:13]} 5. Nf3 {[%emt 0:00:37]} Bd7 {[%emt 0:00:02]} 6. Be2 {[%emt 0:01:00]} cxd4 {[%emt 0:02:23]} 7. cxd4 {[%emt 0:00:04]} Bb5 {[%emt 0:00:06]} 8. Nc3 {[%emt 0:00:11]} Bxe2 {[%emt 0:00:02]} 9. Nxe2 {[%emt 0:00:07]} Bb4+ {[%emt 0:00:03]} 10. Kf1 {[%emt 0:00:10]} Nc6 {[%emt 0:02:07]} 11. g3 {[%emt 0:04:19]} Bf8 {[%emt 0:07:19]} 12. Kg2 {[%emt 0:05:20]} Nge7 {[%emt 0:00:03]} 13. Qd3 {[%emt 0:00:27]} Nb4 {[%emt 0:09:42]} 14. Qd2 {[%emt 0:02:35]} a5 {[%emt 0:03:21]} 15. a3 {[%emt 0:12:49]} Na6 {[%emt 0:03:40]} 16. Qd3 {[%emt 0:14:57]} Nc6 {[%emt 0:01:36]} 17. Nf4 {[%emt 0:03:49]} g6 {[%emt 0:12:36]} 18. h4 {[%emt 0:00:45]} Be7 {[%emt 0:00:03]} 19. h5 {[%emt 0:08:46]} g5 {[%emt 0:19:06]} 20. Ne2 {[%emt 0:01:22]} h6 {[%emt 0:00:01]} 21. Nh2 {[%emt 0:00:28]} Nc7 {[%emt 0:00:01]} 22. Be3 {[%emt 0:04:29]} a4 {[%emt 0:02:08]} 23. Nc3 {[%emt 0:01:08]} Ra5 {[%emt 0:01:34]} 24. Rhc1 {[%emt 0:01:19]} Qb3 {[%emt 0:05:07]} 25. Qd2 {[%emt 0:02:06]} Ra6 {[%emt 0:01:30]} 26. Ng4 {[%emt 0:03:03]} Na5 {[%emt 0:03:32]} 27. Nxa4 {[%emt 0:08:42]} Nc4 {[%emt 0:09:09]} 28. Rxc4 {[%emt 0:00:07]} dxc4 {[%emt 0:01:23]} 29. Nf6+ {[%emt 0:01:08]} Bxf6 {[%emt 0:01:33]} 30. Nc5 {[%emt 0:00:04]} c3 {[%emt 0:00:10]} 31. Nxb3 {[%emt 0:05:39]} cxd2 {[%emt 0:00:02]} 32. exf6 {[%emt 0:00:06]} Nd5 {[%emt 0:03:00]} 33. Bxd2 {[%emt 0:02:40]} Nxf6 {[%emt 0:01:43]} 34. Nc5 {[%emt 0:00:40]} Ra7 {[%emt 0:07:18]} 35. Rc1 {[%emt 0:02:26]} O-O {[%emt 0:00:42]} 36. Nd3 {[%emt 0:00:26]} Nd5 {[%emt 0:00:30]} 37. Nb4 {[%emt 0:03:21]} Ra5 {[%emt 0:00:36]} 38. Nxd5 {[%emt 0:00:44]} Rxd5 {[%emt 0:00:01]} 39. Rc7 {[%emt 0:00:04]} Rb8 {[%emt 0:01:26]} 40. Bc3 {[%emt 0:00:31]} g4 {[%emt 0:00:42]} 41. Rc5 {[%emt 0:01:14]} b6 {[%emt 0:01:34]} 42. Rxd5 {[%emt 0:00:06]} exd5 {[%emt 0:00:01]} 43. Bd2 {[%emt 0:01:07]} Kg7 {[%emt 0:00:19]} 44. a4 {[%emt 0:00:41]} b5 {[%emt 0:02:02]} 45. Bf4 {[%emt 0:02:12]} Ra8 {[%emt 0:01:20]} 46. axb5 {[%emt 0:00:33]} Ra5 {[%emt 0:00:01]} 47. b4 {[%emt 0:04:49]} Rxb5 {[%emt 0:00:01]} 48. Be5+ {[%emt 0:00:26]} Kf8 {[%emt 0:03:43]} 49. Bd6+ {[%emt 0:00:06]} Ke8 {[%emt 0:00:04]} 50. f3 {[%emt 0:00:07]} f5 {[%emt 0:00:18]} 51. Kf2 {[%emt 0:00:52]} Rb6 {[%emt 0:01:07]} 52. Be5 {[%emt 0:00:48]} gxf3 {[%emt 0:00:35]} 53. Kxf3 {[%emt 0:00:10]} Kf7 {[%emt 0:00:16]} 54. Kf4 {[%emt 0:01:15]} Ke6 {[%emt 0:00:01]} 55. Bg7 {[%emt 0:00:09]} Rxb4 {[%emt 0:00:01]} 56. Ke3 {[%emt 0:00:18]} Rb1 {[%emt 0:00:56]} 57. Bxh6 {[%emt 0:01:42]} Rh1 {[%emt 0:00:03]} 58. Bg7 {[%emt 0:00:18]} Rxh5 {[%emt 0:00:04]} 59. Be5 {[%emt 0:00:26]} Rh1 {[%emt 0:00:12]} 60. Kf3 {[%emt 0:00:21]} Re1 {[%emt 0:00:10]} 61. Bg7 {[%emt 0:01:06]} Re4 {[%emt 0:00:02]} 62. Bh8 {[%emt 0:00:09]} Kd7 {[%emt 0:00:14]} 63. Be5 {[%emt 0:00:02]} Kc6 {[%emt 0:00:47]} 64. Bf6 {[%emt 0:00:46]} Kb5 {[%emt 0:00:03]} 65. Bg7 {[%emt 0:00:05]} Kc4 {[%emt 0:00:25]} 66. Bf6 {[%emt 0:00:07]} Rxd4 {[%emt 0:00:42]} 0-1

[Event "SixDays Budapest IM-A 09-2024"]
[Site "Budapest"]
[Date "2024.09.29"]
[Round "9.3"]
[White "Kwon, Sehyun"]
[Black "Kao, Jamison Edrich"]
[Result "1-0"]
[ECO "A49"]
[WhiteElo "2248"]
[BlackElo "2125"]
[Annotator "ChessBase"]
[PlyCount "85"]
[EventDate "2024.09.24"]
[EventType "tourn"]
[EventCountry "HUN"]
[SourceTitle "playchess.com"]
[Source "ChessBase"]
[SourceQuality "1"]
[TimeControl "5400+30"]

1. d4 {[%emt 0:00:45]} Nf6 {[%emt 0:00:03]} 2. Nf3 {[%emt 0:00:20]} g6 {[%emt 0:00:03]} 3. g3 {[%emt 0:00:35]} Bg7 {[%emt 0:00:02]} 4. Bg2 {[%emt 0:00:09]} O-O {[%emt 0:00:03]} 5. O-O {[%emt 0:00:06]} d6 {[%emt 0:00:15]} 6. b3 {[%emt 0:00:26]} e5 {[%emt 0:00:47]} 7. dxe5 {[%emt 0:00:54]} Nfd7 {[%emt 0:00:05]} 8. Bg5 {[%emt 0:00:00]} Qe8 {[%emt 0:01:15]} 9. Nc3 {[%emt 0:00:45]} dxe5 {[%emt 0:05:31]} 10. Nd5 {[%emt 0:00:42]} Na6 {[%emt 0:02:06]} 11. Be7 {[%emt 0:00:45]} c6 {[%emt 0:07:02]} 12. Bxf8 {[%emt 0:00:42]} Qxf8 {[%emt 0:03:45]} 13. Nc3 {[%emt 0:01:55]} Qb4 {[%emt 0:01:12]} 14. Na4 {[%emt 0:03:22]} e4 {[%emt 0:04:09]} 15. c3 {[%emt 0:02:49]} Qa3 {[%emt 0:13:52]} 16. Nd4 {[%emt 0:02:01]} b5 {[%emt 0:02:28]} 17. Nxc6 {[%emt 0:05:46]} bxa4 {[%emt 0:00:19]} 18. Bxe4 {[%emt 0:04:18]} Qf8 {[%emt 0:01:42]} 19. Ne7+ {[%emt 0:04:25]} Qxe7 {[%emt 0:00:04]} 20. Bxa8 {[%emt 0:00:10]} Nb6 {[%emt 0:00:06]} 21. Bg2 {[%emt 0:02:41]} Bxc3 {[%emt 0:00:27]} 22. Rc1 {[%emt 0:01:44]} Be5 {[%emt 0:05:05]} 23. bxa4 {[%emt 0:03:05]} Be6 {[%emt 0:05:15]} 24. a5 {[%emt 0:04:04]} Nc4 {[%emt 0:01:21]} 25. Qa4 {[%emt 0:02:06]} Qb4 {[%emt 0:03:51]} 26. Qc6 {[%emt 0:05:47]} Nc7 {[%emt 0:09:41]} 27. Rfd1 {[%emt 0:05:05]} Qb5 {[%emt 0:00:07]} 28. Qxb5 {[%emt 0:11:21]} Nxb5 {[%emt 0:00:05]} 29. Bd5 {[%emt 0:00:39]} Nb2 {[%emt 0:07:03]} 30. Rd2 {[%emt 0:01:24]} Na4 {[%emt 0:14:35]} 31. Bxe6 {[%emt 0:05:58]} fxe6 {[%emt 0:00:03]} 32. Rc8+ {[%emt 0:01:42]} Kg7 {[%emt 0:00:10]} 33. Rd7+ {[%emt 0:00:13]} Kh6 {[%emt 0:00:05]} 34. Rc4 {[%emt 0:00:30]} Nac3 {[%emt 0:01:07]} 35. Rh4+ {[%emt 0:00:23]} Kg5 {[%emt 0:00:04]} 36. f4+ {[%emt 0:01:11]} Bxf4 {[%emt 0:00:08]} 37. Rxf4 {[%emt 0:00:07]} Nxe2+ {[%emt 0:00:06]} 38. Kf2 {[%emt 0:00:14]} Nxf4 {[%emt 0:00:02]} 39. gxf4+ {[%emt 0:00:06]} Kxf4 {[%emt 0:00:04]} 40. a4 {[%emt 0:00:18]} Nc3 {[%emt 0:00:08]} 41. Rxa7 {[%emt 0:00:18]} Ke5 {[%emt 0:00:09]} 42. a6 {[%emt 0:01:44]} Kd6 {[%emt 0:00:43]} 43. Rxh7 {[%emt 0:00:21]} 1-0